lending/lending_fUSD_20250224
["ID","MTS","AMOUNT","RATE_DAILY","PERIOD"]
[354283408,1740393075983,-500.0,0.00016767,2]
[354283409,1740393075992,-151.0,0.00016767,2]
[354283410,1740393076002,-500.0,0.00016767,2]
[354283411,1740393076012,-151.0,0.00016767,2]
[354283412,1740393076021,-500.0,0.00016767,2]
[354283413,1740393076030,-187.359585,0.00016767,2]
[354283414,1740393076041,-187.359585,0.00016767,2]
[354283415,1740393076050,-151.0,0.00016767,2]
[354283416,1740393076059,-500.0,0.00016767,2]
[354283417,1740393076069,-500.0,0.00016767,2]
[354283418,1740393076078,-500.0,0.00016767,2]
[354283419,1740393076087,-282.296089,0.00016767,2]
[354283420,1740393076096,-500.0,0.00016767,2]
[354283421,1740393076105,-829.52,0.00016767,2]
[354283422,1740393076115,-614.79,0.00016767,2]
[354283423,1740393076124,-500.0,0.00016767,2]
[354283424,1740393076133,-579.34,0.00016767,2]
[354283425,1740393076142,-656.83,0.00016767,2]
[354283426,1740393076151,-229.613081,0.00016767,2]
[354283427,1740393076160,-801.72,0.00016767,2]
[354283428,1740393076170,-500.0,0.00016767,2]
[354283429,1740393076179,-229.613081,0.00016767,2]
[354283430,1740393076188,-500.0,0.00016767,2]
[354283431,1740393076198,-500.0,0.00016767,2]
[354283432,1740393076207,-500.0,0.00016767,2]
[354283433,1740393076216,-778.26,0.00016767,2]
[354283434,1740393076225,-812.09,0.00016767,2]
[354283435,1740393076234,-563.47,0.00016767,2]
[354283436,1740393076243,-500.0,0.00016767,2]
[354283437,1740393076252,-500.0,0.00016767,2]
[354283438,1740393076261,-500.0,0.00016767,2]
[354283439,1740393076271,-594.42,0.00016767,2]
[354283440,1740393076280,-1017.59,0.00016767,2]
[354283441,1740393076290,-506.85482409,0.00016767,2]
[354283442,1740393076299,-1173.0,0.00016767,2]
[354283443,1740393076310,-500.0,0.00016767,2]
[354283444,1740393076319,-985.36,0.00016767,2]
[354283445,1740393076328,-500.0,0.00016767,2]
[354283446,1740393076337,-714.1,0.00016767,2]
[354283447,1740393076347,-601.34,0.00016767,2]
[354283448,1740393076356,-500.0,0.00016767,2]
[354283449,1740393076365,-500.0,0.00016767,2]
[354283450,1740393076374,-1166.36,0.00016767,2]
[354283451,1740393076383,-500.0,0.00016767,2]
[354283452,1740393076392,-500.0,0.00016767,2]
[354283453,1740393076402,-500.0,0.00016767,2]
[354283454,1740393076412,-500.0,0.00016767,2]
[354283455,1740393076422,-655.58,0.00016767,2]
[354283456,1740393076430,-568.87,0.00016767,2]
[354283457,1740393076440,-500.0,0.00016767,2]
[354283458,1740393076449,-500.0,0.00016767,2]
[354283459,1740393076458,-500.0,0.00016767,2]
[354283460,1740393076467,-500.0,0.00016767,2]
[354283461,1740393076476,-500.0,0.00016767,2]
[354283462,1740393076485,-500.0,0.00016767,2]
[354283463,1740393076494,-817.86,0.00016767,2]
[354283464,1740393076503,-500.0,0.00016767,2]
[354283465,1740393076512,-500.0,0.00016767,2]
[354283466,1740393076521,-554.61,0.00016767,2]
[354283467,1740393076530,-607.13,0.00016767,2]
[354283468,1740393076539,-299.279106,0.00016767,2]
[354283469,1740393076548,-500.0,0.00016767,2]
[354283470,1740393076557,-587.42,0.00016767,2]
[354283471,1740393076567,-500.0,0.00016767,2]
[354283472,1740393076577,-500.0,0.00016767,2]
[354283473,1740393076587,-500.0,0.00016767,2]
[354283474,1740393076596,-500.0,0.00016767,2]
[354283475,1740393076606,-500.0,0.00016767,2]
[354283476,1740393076616,-976.63,0.00016767,2]
[354283477,1740393076626,-500.0,0.00016767,2]
[354283478,1740393076635,-758.07,0.00016767,2]
[354283479,1740393076645,-327.093108,0.00016767,2]
[354283480,1740393076655,-500.0,0.00016767,2]
[354283481,1740393076665,-912.3,0.00016767,2]
[354283482,1740393076674,-505.70761655,0.00016767,2]
[354283483,1740393076684,-500.0,0.00016767,2]
[354283484,1740393076694,-966.44,0.00016767,2]
[354283485,1740393076704,-510.52934833,0.00016767,2]
[354283486,1740393076713,-571.99,0.00016767,2]
[354283487,1740393076724,-583.89,0.00016767,2]
[354283488,1740393076734,-508.91,0.00016767,2]
[354283489,1740393076743,-500.0,0.00016767,2]
[354283490,1740393076753,-500.0,0.00016767,2]
[354283491,1740393076762,-160.368063,0.00016767,2]
[354283492,1740393076772,-511.80845068,0.00016767,2]
[354283493,1740393076782,-500.0,0.00016767,2]
[354283494,1740393076791,-160.368063,0.00016767,2]
[354283495,1740393076800,-500.0,0.00016767,2]
[354283496,1740393076811,-500.0,0.00016767,2]
[354283497,1740393076820,-825.69,0.00016767,2]
[354283498,1740393076830,-500.0,0.00016767,2]
[354283499,1740393076842,-793.11,0.00016767,2]
[354283500,1740393076851,-568.54,0.00016767,2]
[354283501,1740393076861,-500.0,0.00016767,2]
[354283502,1740393076870,-688.09,0.00016767,2]
[354283503,1740393076879,-500.0,0.00016767,2]
[354283504,1740393076888,-500.0,0.00016767,2]
[354283505,1740393076897,-827.28,0.00016767,2]
[354283506,1740393076906,-500.0,0.00016767,2]
[354283507,1740393076916,-500.0,0.00016767,2]
[354283508,1740393076926,-500.0,0.00016767,2]
[354283509,1740393076935,-500.0,0.00016767,2]
[354283510,1740393076945,-500.0,0.00016767,2]
[354283511,1740393076954,-500.0,0.00016767,2]
[354283512,1740393076963,-501.11,0.00016767,2]
[354283513,1740393076973,-571.55,0.00016767,2]
[354283514,1740393076982,-500.0,0.00016767,2]
[354283515,1740393076992,-590.2,0.00016767,2]
[354283516,1740393077001,-500.0,0.00016767,2]
[354283517,1740393077012,-500.0,0.00016767,2]
[354283518,1740393077022,-500.0,0.00016767,2]
[354283519,1740393077031,-500.0,0.00016767,2]
[354283520,1740393077041,-500.0,0.00016767,2]
[354283521,1740393077051,-500.0,0.00016767,2]
[354283522,1740393077061,-500.0,0.00016767,2]
[354283523,1740393077070,-500.0,0.00016767,2]
[354283524,1740393077079,-500.0,0.00016767,2]
[354283525,1740393077089,-500.0,0.00016767,2]
[354283526,1740393077098,-500.0,0.00016767,2]
[354283527,1740393077110,-500.0,0.00016767,2]
[354283528,1740393077119,-500.0,0.00016767,2]
[354283529,1740393077129,-151.0,0.00016767,2]
[354283530,1740393077138,-500.0,0.00016767,2]
[354283531,1740393077147,-500.0,0.00016767,2]
[354283532,1740393077157,-500.0,0.00016767,2]
[354283533,1740393077166,-500.0,0.00016767,2]
[354283534,1740393077175,-500.0,0.00016767,2]
[354283535,1740393077185,-865.78,0.00016767,2]
[354283536,1740393077194,-792.11,0.00016767,2]
[354283537,1740393077204,-182.76678906,0.00016767,2]
[354283538,1740393077213,-500.0,0.00016767,2]
[354283539,1740393077222,-502.07,0.00016767,2]
[354283540,1740393077231,-500.0,0.00016767,2]
[354283541,1740393077240,-732.07,0.00016767,2]
[354283542,1740393077250,-536.67,0.00016767,2]
[354283543,1740393077259,-772.46,0.00016767,2]
[354283544,1740393077268,-500.0,0.00016767,2]
[354283545,1740393077277,-151.0,0.00016767,2]
[354283546,1740393077287,-994.92,0.00016767,2]
[354283547,1740393077296,-500.0,0.00016767,2]
[354283548,1740393077306,-719.27,0.00016767,2]
[354283549,1740393077316,-500.0,0.00016767,2]
[354283550,1740393077326,-500.0,0.00016767,2]
[354283551,1740393077336,-576.942674,0.00016767,2]
[354283552,1740393077346,-500.0,0.00016767,2]
[354283553,1740393077355,-732.94,0.00016767,2]
[354283554,1740393077364,-395.17730163,0.00016767,2]
[354283555,1740393077374,-894.91,0.00016767,2]
[354283556,1740393077383,-576.942674,0.00016767,2]
[354283557,1740393077392,-835.59,0.00016767,2]
[354283558,1740393077402,-1034.89,0.00016767,2]
[354283559,1740393077411,-500.0,0.00016767,2]
[354283560,1740393077420,-1083.32,0.00016767,2]
[354283561,1740393077429,-500.0,0.00016767,2]
[354283562,1740393077438,-500.0,0.00016767,2]
[354283563,1740393077447,-649.75,0.00016767,2]
[354283564,1740393077456,-547.93,0.00016767,2]
[354283565,1740393077465,-500.0,0.00016767,2]
[354283566,1740393077474,-307.78773999,0.00016767,2]
[354283567,1740393077484,-500.0,0.00016767,2]
[354283568,1740393077493,-500.0,0.00016767,2]
[354283569,1740393077502,-619.11317456,0.00016767,2]
[354283570,1740393077511,-689.58,0.00016767,2]
[354283571,1740393077520,-151.0,0.00016767,2]
[354283572,1740393077529,-685.53,0.00016767,2]
[354283573,1740393077538,-500.0,0.00016767,2]
[354283574,1740393077547,-500.0,0.00016767,2]
[354283575,1740393077556,-500.0,0.00016767,2]
[354283576,1740393077566,-500.0,0.00016767,2]
[354283577,1740393077575,-500.0,0.00016767,2]
[354283578,1740393077584,-500.0,0.00016767,2]
[354283579,1740393077592,-500.0,0.00016767,2]
[354283580,1740393077602,-500.0,0.00016767,2]
[354283581,1740393077611,-770.75,0.00016767,2]
[354283582,1740393077619,-596.16,0.00016767,2]
[354283583,1740393077629,-1066.15,0.00016767,2]
[354283584,1740393077639,-939.56,0.00016767,2]
[354283585,1740393077648,-535.53,0.00016767,2]
[354283586,1740393077657,-500.0,0.00016767,2]
[354283587,1740393077666,-1713.16,0.00016767,2]
[354283588,1740393077675,-999.11,0.00016767,2]
[354283589,1740393077687,-545.3,0.00016767,2]
[354283590,1740393077698,-988.44,0.00016767,2]
[354283591,1740393077709,-1914.59,0.00016767,2]
[354283592,1740393077720,-1771.19,0.00016767,2]
[354283593,1740393077730,-205.106864,0.00016767,2]
[354283594,1740393077740,-500.0,0.00016767,2]
[354283595,1740393077749,-151.0,0.00016767,2]
[354283596,1740393077758,-205.106864,0.00016767,2]
[354283597,1740393077767,-2047.21,0.00016767,2]
[354283598,1740393077776,-4053.22,0.00016767,2]
[354283599,1740393077785,-857.92,0.00016767,2]
[354283600,1740393077794,-1114.15,0.00016767,2]
[354283601,1740393077804,-507.52,0.00016767,2]
[354283602,1740393077814,-760.3,0.00016767,2]
[354283603,1740393077823,-1134.98,0.00016767,2]
[354283604,1740393077833,-164.410286,0.00016767,2]
[354283605,1740393077842,-1537.05,0.00016767,2]
[354283606,1740393077855,-500.0,0.00016767,2]
[354283607,1740393077865,-164.410286,0.00016767,2]
[354283608,1740393077874,-2359.95,0.00016767,2]
[354283609,1740393077884,-1103.35,0.00016767,2]
[354283610,1740393077894,-242.118806,0.00016767,2]
[354283611,1740393077904,-151.0,0.00016767,2]
[354283612,1740393077913,-4184.04,0.00016767,2]
[354283613,1740393077922,-1851.33,0.00016767,2]
[354283614,1740393077932,-242.118806,0.00016767,2]
[354283615,1740393077941,-2354.25,0.00016767,2]
[354283616,1740393077950,-613.1,0.00016767,2]
[354283617,1740393077959,-971.17,0.00016767,2]
[354283618,1740393077968,-3563.69,0.00016767,2]
[354283619,1740393077977,-500.0,0.00016767,2]
[354283620,1740393077986,-500.0,0.00016767,2]
[354283621,1740393077995,-2009.96,0.00016767,2]
[354283622,1740393078005,-500.0,0.00016767,2]
[354283623,1740393078015,-1543.4,0.00016767,2]
[354283624,1740393078024,-533.77,0.00016767,2]
[354283625,1740393078034,-633.74,0.00016767,2]
[354283626,1740393078044,-2242.87,0.00016767,2]
[354283627,1740393078054,-500.0,0.00016767,2]
[354283628,1740393078064,-1803.65,0.00016767,2]
[354283629,1740393078074,-500.0,0.00016767,2]
[354283630,1740393078084,-2187.68,0.00016767,2]
[354283631,1740393078094,-728.65,0.00016767,2]
[354283632,1740393078104,-6441.69,0.00016767,2]
[354283633,1740393078114,-530.59,0.00016767,2]
[354283634,1740393078124,-552.52,0.00016767,2]
[354283635,1740393078134,-500.0,0.00016767,2]
[354283636,1740393078145,-1823.33,0.00016767,2]
[354283637,1740393078154,-500.0,0.00016767,2]
[354283638,1740393078164,-580.19,0.00016767,2]
[354283639,1740393078173,-2359.28,0.00016767,2]
[354283640,1740393078183,-517.51103659,0.00016767,2]
[354283641,1740393078193,-500.0,0.00016767,2]
[354283642,1740393078203,-6310.46,0.00016767,2]
[354283643,1740393078213,-1754.56,0.00016767,2]
[354283644,1740393078223,-1453.83,0.00016767,2]
[354283645,1740393078233,-151.0,0.00016767,2]
[354283646,1740393078242,-2395.13,0.00016767,2]
[354283647,1740393078251,-500.0,0.00016767,2]
[354283648,1740393078262,-500.0,0.00016767,2]
[354283649,1740393078272,-500.0,0.00016767,2]
[354283650,1740393078282,-1530.26,0.00016767,2]
[354283651,1740393078292,-1729.98,0.00016767,2]
[354283652,1740393078302,-523.34,0.00016767,2]
[354283653,1740393078364,-851.1318,0.00016767,2]
[354283654,1740393078375,-1888.7,0.00016767,2]
[354283655,1740393078384,-887.15,0.00016767,2]
[354283656,1740393078393,-561.68,0.00016767,2]
[354283657,1740393078403,-513.32516361,0.00016767,2]
[354283658,1740393078412,-851.131792,0.00016767,2]
[354283659,1740393078422,-1893.25,0.00016767,2]
[354283660,1740393078431,-1229.83,0.00016767,2]
[354283661,1740393078441,-1592.71,0.00016767,2]
[354283662,1740393078450,-1352.31,0.00016767,2]
[354283663,1740393078460,-2122.57,0.00016767,2]
[354283664,1740393078469,-1563.39,0.00016767,2]
[354283665,1740393078479,-3181.44,0.00016767,2]
[354283666,1740393078489,-500.0,0.00016767,2]
[354283667,1740393078498,-931.35,0.00016767,2]
[354283668,1740393078508,-1364.19,0.00016767,2]
[354283669,1740393078517,-1399.69,0.00016767,2]
[354283670,1740393078527,-947.59,0.00016767,2]
[354283671,1740393078536,-1158.15,0.00016767,2]
[354283672,1740393078545,-1055.82,0.00016767,2]
[354283673,1740393078554,-1335.01,0.00016767,2]
[354283674,1740393078564,-1743.38,0.00016767,2]
[354283675,1740393078573,-1124.16,0.00016767,2]
[354283676,1740393078583,-1245.15,0.00016767,2]
[354283677,1740393078592,-862.87,0.00016767,2]
[354283678,1740393078602,-737.22,0.00016767,2]
[354283679,1740393078611,-3379.84,0.00016767,2]
[354283680,1740393078620,-2190.52,0.00016767,2]
[354283681,1740393078629,-500.0,0.00016767,2]
[354283682,1740393078639,-1993.18,0.00016767,2]
[354283683,1740393078648,-2255.32,0.00016767,2]
[354283684,1740393078657,-2112.38,0.00016767,2]
[354283685,1740393078666,-1406.66,0.00016767,2]
[354283686,1740393078676,-511.28,0.00016767,2]
[354283687,1740393078685,-1338.87,0.00016767,2]
[354283688,1740393078694,-1163.78,0.00016767,2]
[354283689,1740393078704,-899.89,0.00016767,2]
[354283690,1740393078714,-2575.6,0.00016767,2]
[354283691,1740393078723,-491.25547466,0.00016767,2]
[354283692,1740393078732,-1931.36,0.00016767,2]
[354283693,1740393078743,-651.74,0.00016767,2]
[354283694,1740393078753,-500.0,0.00016767,2]
[354283695,1740393078762,-3875.26,0.00016767,2]
[354283696,1740393078772,-714.88,0.00016767,2]
[354283697,1740393078782,-4627.1,0.00016767,2]
[354283698,1740393078791,-2331.1,0.00016767,2]
[354283699,1740393078801,-794.55,0.00016767,2]
[354283700,1740393078811,-811.87,0.00016767,2]
[354283701,1740393078820,-1360.35,0.00016767,2]
[354283702,1740393078830,-757.29,0.00016767,2]
[354283703,1740393078839,-500.0,0.00016767,2]
[354283704,1740393078850,-500.0,0.00016767,2]
[354283705,1740393078859,-500.0,0.00016767,2]
[354283706,1740393078868,-1905.52,0.00016767,2]
[354283707,1740393078877,-1832.68,0.00016767,2]
[354283708,1740393078887,-500.0,0.00016767,2]
[354283709,1740393078896,-1012.51,0.00016767,2]
[354283710,1740393078905,-500.0,0.00016767,2]
[354283711,1740393078915,-1130.11,0.00016767,2]
[354283712,1740393078926,-500.0,0.00016767,2]
[354283713,1740393078935,-2153.01,0.00016767,2]
[354283714,1740393078944,-500.0,0.00016767,2]
[354283715,1740393078953,-1435.16,0.00016767,2]
[354283716,1740393078963,-2176.8,0.00016767,2]
[354283717,1740393078972,-1895.66,0.00016767,2]
[354283718,1740393078981,-500.0,0.00016767,2]
[354283719,1740393078991,-683.14,0.00016767,2]
[354283720,1740393079001,-500.0,0.00016767,2]
[354283721,1740393079010,-500.0,0.00016767,2]
[354283722,1740393079020,-345.30973932,0.00016767,2]
[354283723,1740393079029,-1239.34,0.00016767,2]
[354283724,1740393079039,-2117.99,0.00016767,2]
[354283725,1740393079048,-2225.26,0.00016767,2]
[354283726,1740393079058,-312.393513,0.00016767,2]
[354283727,1740393079069,-1435.64,0.00016767,2]
[354283728,1740393079078,-876.4,0.00016767,2]
[354283729,1740393079088,-1250.73,0.00016767,2]
[354283730,1740393079098,-1238.73,0.00016767,2]
[354283731,1740393079107,-312.39351,0.00016767,2]
[354283732,1740393079116,-1448.82,0.00016767,2]
[354283733,1740393079125,-1222.74,0.00016767,2]
[354283734,1740393079134,-500.0,0.00016767,2]
[354283735,1740393079143,-2133.06,0.00016767,2]
[354283736,1740393079152,-500.0,0.00016767,2]
[354283737,1740393079161,-902.39,0.00016767,2]
[354283738,1740393079171,-2952.34,0.00016767,2]
[354283739,1740393079180,-637.55,0.00016767,2]
[354283740,1740393079189,-1714.23,0.00016767,2]
[354283741,1740393079198,-1345.12,0.00016767,2]
[354283742,1740393079207,-455.827672,0.00016767,2]
[354283743,1740393079216,-1346.53,0.00016767,2]
[354283744,1740393079225,-500.0,0.00016767,2]
[354283745,1740393079235,-1153.09,0.00016767,2]
[354283746,1740393079243,-500.0,0.00016767,2]
[354283747,1740393079253,-1050.72,0.00016767,2]
[354283748,1740393079262,-1549.23,0.00016767,2]
[354283749,1740393079271,-455.827679,0.00016767,2]
[354283750,1740393079280,-500.0,0.00016767,2]
[354283751,1740393079290,-709.856055,0.00016767,2]
[354283752,1740393079299,-500.0,0.00016767,2]
[354283753,1740393079309,-2116.78,0.00016767,2]
[354283754,1740393079319,-1323.73,0.00016767,2]
[354283755,1740393079329,-968.02,0.00016767,2]
[354283756,1740393079338,-709.856055,0.00016767,2]
[354283757,1740393079348,-1976.05,0.00016767,2]
[354283758,1740393079358,-481.35687217,0.00016767,2]
[354283759,1740393079369,-2709.27,0.00016767,2]
[354283760,1740393079379,-500.0,0.00016767,2]
[354283761,1740393079389,-500.0,0.00016767,2]
[354283762,1740393079398,-1417.13,0.00016767,2]
[354283763,1740393079407,-649.11,0.00016767,2]
[354283764,1740393079416,-500.0,0.00016767,2]
[354283765,1740393079426,-500.0,0.00016767,2]
[354283766,1740393079436,-500.0,0.00016767,2]
[354283767,1740393079445,-517.98,0.00016767,2]
[354283768,1740393079455,-1383.1,0.00016767,2]
[354283769,1740393079464,-639.53,0.00016767,2]
[354283770,1740393079472,-575.9,0.00016767,2]
[354283771,1740393079481,-2137.13,0.00016767,2]
[354283772,1740393079490,-1329.85,0.00016767,2]
[354283773,1740393079499,-2522.02,0.00016767,2]
[354283774,1740393079507,-500.0,0.00016767,2]
[354283775,1740393079516,-1057.9,0.00016767,2]
[354283776,1740393079525,-641.12766809,0.00016767,2]
[354283777,1740393079534,-2173.78,0.00016767,2]
[354283778,1740393079542,-500.0,0.00016767,2]
[354283779,1740393079552,-400.0,0.0001677,2]
[354283780,1740393079561,-5971.78532084,0.000168,8]
[354283781,1740393079570,-151.0,0.000168,2]
[354283782,1740393079579,-171.901977,0.000168,2]
[354283783,1740393079587,-171.901977,0.000168,2]
[354283784,1740393079597,-151.0,0.000168,2]
[354283785,1740393079606,-200.976492,0.000168,2]
[354283786,1740393079615,-200.976492,0.000168,2]
[354283787,1740393079624,-151.0,0.000168,2]
[354283788,1740393079633,-151.0,0.000168,2]
[354283789,1740393079642,-160.368063,0.000168,2]
[354283790,1740393079653,-160.368063,0.000168,2]
[354283791,1740393079662,-151.0,0.000168,2]
[354283792,1740393079672,-205.106864,0.000168,2]
[354283793,1740393079682,-151.0,0.000168,2]
[354283794,1740393079692,-205.106864,0.000168,2]
[354283795,1740393079701,-164.410286,0.000168,2]
[354283796,1740393079711,-164.410286,0.000168,2]
[354283797,1740393079720,-242.118806,0.000168,2]
[354283798,1740393079730,-151.0,0.000168,2]
[354283799,1740393079740,-242.118806,0.000168,2]
[354283800,1740393079750,-151.0,0.000168,2]
[354283801,1740393079760,-927.18,0.00016842,2]
[354283802,1740393079769,-151.0,0.00016842,2]
[354283803,1740393079779,-151.0,0.00016842,2]
[354283804,1740393079788,-151.0,0.00016849,2]
[354283805,1740393079797,-500.0,0.00016849,2]
[354283806,1740393079807,-500.0,0.00016849,2]
[354283807,1740393079818,-151.0,0.00016849,2]
[354283808,1740393079828,-491.61531627,0.00016849,2]
[354283809,1740393079839,-500.0,0.00016849,2]
[354283810,1740393079852,-500.0,0.00016849,2]
[354283811,1740393079861,-171.901977,0.00016849,2]
[354283812,1740393079871,-171.901978,0.00016849,2]
[354283813,1740393079882,-151.0,0.00016849,2]
[354283814,1740393079892,-200.976492,0.00016849,2]
[354283815,1740393079901,-500.0,0.00016849,2]
[354283816,1740393079910,-200.976485,0.00016849,2]
[354283817,1740393079919,-500.0,0.00016849,2]
[354283818,1740393079930,-500.0,0.00016849,2]
[354283819,1740393079939,-500.0,0.00016849,2]
[354283820,1740393079948,-500.0,0.00016849,2]
[354283821,1740393079958,-151.0,0.00016849,2]
[354283822,1740393079967,-151.0,0.00016849,2]
[354283823,1740393079976,-513.04,0.00016849,2]
[354283824,1740393079985,-500.0,0.00016849,2]
[354283825,1740393079994,-500.0,0.00016849,2]
[354283826,1740393080004,-705.82,0.00016849,2]
[354283827,1740393080013,-500.0,0.00016849,2]
[354283828,1740393080022,-500.0,0.00016849,2]
[354283829,1740393080031,-500.0,0.00016849,2]
[354283830,1740393080040,-500.0,0.00016849,2]
[354283831,1740393080049,-568.69,0.00016849,2]
[354283832,1740393080058,-500.0,0.00016849,2]
[354283833,1740393080068,-500.0,0.00016849,2]
[354283834,1740393080077,-500.0,0.00016849,2]
[354283835,1740393080086,-500.0,0.00016849,2]
[354283836,1740393080095,-613.91,0.00016849,2]
[354283837,1740393080104,-553.53055834,0.00016849,2]
[354283838,1740393080114,-151.0,0.00016849,2]
[354283839,1740393080123,-151.0,0.00016849,2]
[354283840,1740393080132,-415.0104149,0.00016849,2]
[354283841,1740393080142,-151.0,0.00016849,2]
[354283842,1740393080151,-506.15513354,0.00016849,2]
[354283843,1740393080160,-187.359585,0.00016849,2]
[354283844,1740393080170,-187.359585,0.00016849,2]
[354283845,1740393080179,-187.359585,0.00016849,2]
[354283846,1740393080189,-187.359585,0.00016849,2]
[354283847,1740393080198,-151.0,0.00016849,2]
[354283848,1740393080207,-500.0,0.00016849,2]
[354283849,1740393080216,-500.0,0.00016849,2]
[354283850,1740393080226,-500.0,0.00016849,2]
[354283851,1740393080236,-500.0,0.00016849,2]
[354283852,1740393080245,-829.52,0.00016849,2]
[354283853,1740393080255,-614.79,0.00016849,2]
[354283854,1740393080264,-500.0,0.00016849,2]
[354283855,1740393080277,-579.34,0.00016849,2]
[354283856,1740393080288,-656.83,0.00016849,2]
[354283857,1740393080297,-229.613081,0.00016849,2]
[354283858,1740393080307,-229.613081,0.00016849,2]
[354283859,1740393080318,-801.72,0.00016849,2]
[354283860,1740393080327,-500.0,0.00016849,2]
[354283861,1740393080336,-229.613081,0.00016849,2]
[354283862,1740393080346,-229.613081,0.00016849,2]
[354283863,1740393080354,-500.0,0.00016849,2]
[354283864,1740393080363,-500.0,0.00016849,2]
[354283865,1740393080373,-500.0,0.00016849,2]
[354283866,1740393080382,-778.26,0.00016849,2]
[354283867,1740393080391,-812.09,0.00016849,2]
[354283868,1740393080400,-563.47,0.00016849,2]
[354283869,1740393080413,-500.0,0.00016849,2]
[354283870,1740393080423,-500.0,0.00016849,2]
[354283871,1740393080432,-500.0,0.00016849,2]
[354283872,1740393080441,-594.42,0.00016849,2]
[354283873,1740393080451,-1017.59,0.00016849,2]
[354283874,1740393080460,-1173.0,0.00016849,2]
[354283875,1740393080469,-500.0,0.00016849,2]
[354283876,1740393080479,-985.36,0.00016849,2]
[354283877,1740393080488,-500.0,0.00016849,2]
[354283878,1740393080498,-714.1,0.00016849,2]
[354283879,1740393080507,-601.34,0.00016849,2]
[354283880,1740393080517,-500.0,0.00016849,2]
[354283881,1740393080526,-500.0,0.00016849,2]
[354283882,1740393080535,-1166.36,0.00016849,2]
[354283883,1740393080545,-500.0,0.00016849,2]
[354283884,1740393080554,-500.0,0.00016849,2]
[354283885,1740393080563,-500.0,0.00016849,2]
[354283886,1740393080573,-500.0,0.00016849,2]
[354283887,1740393080582,-655.58,0.00016849,2]
[354283888,1740393080591,-568.87,0.00016849,2]
[354283889,1740393080601,-500.0,0.00016849,2]
[354283890,1740393080610,-580.86,0.00016849,2]
[354283891,1740393080620,-500.0,0.00016849,2]
[354283892,1740393080629,-500.0,0.00016849,2]
[354283893,1740393080639,-500.0,0.00016849,2]
[354283894,1740393080648,-817.86,0.00016849,2]
[354283895,1740393080657,-500.0,0.00016849,2]
[354283896,1740393080667,-500.0,0.00016849,2]
[354283897,1740393080676,-554.61,0.00016849,2]
[354283898,1740393080685,-607.13,0.00016849,2]
[354283899,1740393080695,-299.279106,0.00016849,2]
[354283900,1740393080704,-500.0,0.00016849,2]
[354283901,1740393080714,-587.42,0.00016849,2]
[354283902,1740393080723,-289.32,0.00016849,2]
[354283903,1740393080733,-511.73026327,0.00016849,2]
[354283904,1740393080742,-500.0,0.00016849,2]
[354283905,1740393080752,-500.0,0.00016849,2]
[354283906,1740393080761,-500.0,0.00016849,2]
[354283907,1740393080771,-976.63,0.00016849,2]